fUSD/lending_fUSD_20251006
["ID","MTS","AMOUNT","RATE_DAILY","PERIOD"]
[389626425,1759753848762,-47.65376126,0.0001606,2]
[389626426,1759753848772,-76.12833364,0.00016438,2]
[389626427,1759753848782,-500.0,0.00016438,2]
[389626428,1759753848792,-500.0,0.00016438,2]
[389626429,1759753848803,-500.0,0.00016438,2]
[389626430,1759753848813,-500.0,0.00016438,2]
[389626431,1759753848823,-500.0,0.00016438,2]
[389626432,1759753848832,-500.0,0.00016438,2]
[389626433,1759753848842,-503.05387004,0.00016438,2]
[389626434,1759753848852,-151.0,0.00016438,2]
[389626435,1759753848862,-151.0,0.00016438,2]
[389626436,1759753848872,-500.0,0.00016438,2]
[389626437,1759753848882,-151.0,0.00016438,2]
[389626438,1759753848891,-500.0,0.00016438,2]
[389626439,1759753848901,-7.83678839,0.00016438,2]
[389626440,1759753849531,-143.16321161,0.00016438,2]
[389626441,1759753849540,-419.19686295,0.00016438,2]
[389626442,1759753849552,-80.80313705,0.00016438,2]
[389626443,1759753849563,-223.082902,0.00016438,2]
[389626444,1759753849572,-104.91085903,0.00016438,2]
[389626445,1759753849589,-395.08914097,0.00016438,2]
[389626446,1759753849598,-500.0,0.00016438,2]
[389626447,1759753849608,-500.0,0.00016438,2]
[389626448,1759753849617,-500.0,0.00016438,2]
[389626449,1759753849627,-500.0,0.00016438,2]
[389626450,1759753849636,-500.0,0.00016438,2]
[389626451,1759753849646,-500.0,0.00016438,2]
[389626452,1759753849655,-500.0,0.00016438,2]
[389626453,1759753849665,-500.0,0.00016438,2]
[389626454,1759753849675,-500.0,0.00016438,2]
[389626455,1759753849684,-317.6233991,0.00016438,2]
[389626456,1759753849693,-178.872037,0.00016438,2]
[389626457,1759753849703,-178.872037,0.00016438,2]
[389626458,1759753849713,-500.0,0.00016438,2]
[389626459,1759753849723,-500.0,0.00016438,2]
[389626460,1759753849734,-500.0,0.00016438,2]
[389626461,1759753849744,-500.0,0.00016438,2]
[389626462,1759753849754,-420.32801538,0.00016438,2]
[389626463,1759753849772,-79.67198462,0.00016438,2]
[389626464,1759753849782,-500.0,0.00016438,2]
[389626465,1759753849792,-415.98801538,0.00016438,2]
[389626466,1759753849831,-84.01198462,0.00016438,2]
[389626467,1759753849841,-178.872037,0.00016438,2]
[389626468,1759753849852,-399.65321641,0.00016438,2]
[389626471,1759753884083,130.38030276,7.753e-05,2]
[389626472,1759753884107,28.31969724,7.753e-05,2]
[389626473,1759753884310,158.7,9.045e-05,2]
[389626474,1759753884546,158.7,0.00010337,2]
[389626475,1759753884767,158.7,0.0001163,2]
[389626476,1759753931938,161.0,0.00011897,2]
[389626479,1759754083067,9046.82,0.00011897,2]
[389626526,1759754765275,-158.7,0.00012922,2]
[389626527,1759754765300,-333.2250221,0.00012923,2]
[389626529,1759754796131,-333.2250221,0.0001411,3]
[389626530,1759754796157,-36.94225576,0.00014199,2]
[389626534,1759754838072,500.0,5.7e-05,2]
[389626535,1759754838518,500.0,5e-05,2]
[389626572,1759755031521,-1200.0,0.00014196,2]
[389626574,1759755031532,-300.0,0.00014196,2]
[389626576,1759755031541,-150.0,0.00014197,2]
[389626578,1759755031551,-503.53652257,0.00014197,2]
[389626580,1759755031560,-500.0,0.00014197,2]
[389626582,1759755031569,-500.0,0.00014197,2]
[389626584,1759755031578,-500.0,0.00014197,2]
[389626586,1759755031587,-500.0,0.00014197,2]
[389626588,1759755031596,-500.0,0.00014197,2]
[389626589,1759755031607,-500.0,0.00014197,2]
[389626590,1759755031616,-500.0,0.00014197,2]
[389626591,1759755031625,-500.0,0.00014197,2]
[389626592,1759755031635,-500.0,0.00014197,2]
[389626593,1759755031644,-500.0,0.00014197,2]
[389626594,1759755031653,-500.0,0.00014197,2]
[389626595,1759755031663,-500.0,0.00014197,2]
[389626596,1759755031675,-500.0,0.00014197,2]
[389626597,1759755031684,-500.0,0.00014197,2]
[389626598,1759755031693,-500.0,0.00014197,2]
[389626599,1759755031702,-500.0,0.00014197,2]
[389626600,1759755031711,-500.0,0.00014197,2]
[389626601,1759755031721,-302.24153095,0.00014197,2]
[389626602,1759755031730,-500.0,0.00014197,2]
[389626603,1759755031739,-500.0,0.00014197,2]
[389626604,1759755031748,-500.0,0.00014197,2]
[389626605,1759755031758,-500.0,0.00014197,2]
[389626606,1759755031767,-500.0,0.00014197,2]
[389626607,1759755031776,-500.0,0.00014197,2]
[389626608,1759755031786,-500.0,0.00014197,2]
[389626609,1759755031795,-472.48,0.00014197,2]
[389626610,1759755031805,-711.53334289,0.00014199,7]
[389626611,1759755031816,-556.64674786,0.00014199,7]
[389626612,1759755031846,-400.0,0.00014199,7]
[389626614,1759755031858,-2833.88730982,0.00014199,7]
[389626616,1759755031869,-2690.95070822,0.00014199,7]
[389626618,1759755031880,-60250.27122911,0.00014199,7]
[389626620,1759755031890,-209.30490444,0.00014202,2]
[389626622,1759755031902,-200.0,0.00014202,2]
[389626625,1759755031911,-151.0,0.00014202,2]
[389626626,1759755031921,-151.0,0.00014202,2]
[389626629,1759755031930,-151.0,0.00014202,2]
[389626630,1759755031940,-500.0,0.00014202,2]
[389626632,1759755031949,-151.0,0.00014202,2]
[389626634,1759755031959,-500.0,0.00014202,2]
[389626635,1759755031969,-151.0,0.00014202,2]
[389626636,1759755031980,-500.0,0.00014202,2]
[389626637,1759755031989,-151.0,0.00014202,2]
[389626638,1759755031998,-500.0,0.00014202,2]
[389626639,1759755032007,-151.0,0.00014202,2]
[389626640,1759755032017,-500.0,0.00014202,2]
[389626643,1759755032027,-151.0,0.00014202,2]
[389626645,1759755032037,-500.0,0.00014202,2]
[389626646,1759755032047,-270.0112705,0.00014202,2]
[389626647,1759755032056,-151.0,0.00014202,2]
[389626648,1759755032065,-315.79350781,0.00014202,2]
[389626649,1759755032074,-151.0,0.00014202,2]
[389626651,1759755032084,-151.0,0.00014202,2]
[389626653,1759755032093,-151.0,0.00014202,2]
[389626654,1759755032104,-151.0,0.00014202,2]
[389626655,1759755032113,-151.0,0.00014202,2]
[389626656,1759755032123,-151.0,0.00014202,2]
[389626657,1759755032132,-151.0,0.00014202,2]
[389626658,1759755032141,-151.0,0.00014202,2]
[389626659,1759755032152,-151.0,0.00014202,2]
[389626660,1759755032161,-151.0,0.00014202,2]
[389626661,1759755032170,-151.0,0.00014202,2]
[389626662,1759755032179,-247.64981845,0.00014202,2]
[389626663,1759755032188,-887.44,0.0001421,2]
[389626664,1759755032198,-158.7,0.00014214,2]
[389626665,1759755032207,-195.0,0.00014214,2]
[389626666,1759755032217,-496.99,0.00014319,2]
[389626667,1759755032227,-2000.0,0.00014319,2]
[389626668,1759755032236,-1273.756,0.00014319,2]
[389626669,1759755032246,-1000.0,0.00014319,2]
[389626670,1759755032255,-908.622,0.00014319,2]
[389626671,1759755032264,-887.44,0.00014484,2]
[389626672,1759755032274,-215.458,0.0001468,2]
[389626673,1759755032283,-887.44,0.00014758,2]
[389626674,1759755032292,-150.0,0.0001477,2]
[389626675,1759755032301,-281.74074499,0.0001477,2]
[389626676,1759755032311,-150.0,0.000149,2]
[389626677,1759755032320,-1500.0,0.00014923,2]
[389626678,1759755032329,-887.44,0.00015032,2]
[389626679,1759755032339,-150.0,0.00015035,2]
[389626680,1759755032357,-150.0,0.00015153,7]
[389626681,1759755032368,-300.0,0.000152,5]
[389626682,1759755032377,-162.9,0.00015252,2]
[389626683,1759755032387,-600.0,0.000153,5]
[389626684,1759755032397,-887.44,0.00015306,2]
[389626685,1759755032407,-255.0,0.00015319,2]
[389626686,1759755032416,-900.0,0.000154,5]
[389626687,1759755032425,-3061.29,0.00015416,2]
[389626688,1759755032434,-370.68887098,0.00015466,2]
[389626689,1759755032444,-168.93,0.00015499,2]
[389626691,1759755032453,-1200.0,0.000155,5]
[389626692,1759755032462,-378.0,0.00015503,2]
[389626693,1759755032471,-158.7,0.00015506,2]
[389626694,1759755032481,-237.11993175,0.00015529,2]
[389626695,1759755032490,-203.42056732,0.00015529,2]
[389626696,1759755032499,-203.42056732,0.00015529,2]
[389626697,1759755032508,-420.0,0.00015549,2]
[389626698,1759755032517,-3977.47784712,0.00015565,2]
[389626699,1759755032527,-887.44,0.0001558,2]
[389626700,1759755032536,-1500.0,0.000156,5]
[389626701,1759755032546,-500.0,0.00015615,2]
[389626702,1759755032556,-231.28369723,0.00015615,2]
[389626703,1759755032565,-601.3376128,0.00015615,2]
[389626704,1759755032574,-500.0,0.00015615,2]
[389626705,1759755032584,-500.0,0.00015615,2]
[389626706,1759755032593,-639.98121994,0.00015615,2]
[389626707,1759755032603,-1000.0,0.00015615,2]
[389626708,1759755032613,-1064.10177476,0.00015615,2]
[389626709,1759755032623,-2000.0,0.00015615,2]
[389626710,1759755032632,-7965.41053268,0.00015615,2]
[389626711,1759755032947,-1303.94148289,0.00015615,2]
[389626712,1759755032957,-500.0,0.00015615,2]
[389626713,1759755032967,-500.0,0.00015615,2]
[389626714,1759755032979,-500.0,0.00015615,2]
[389626715,1759755032988,-151.0,0.00015615,2]
[389626716,1759755032997,-151.0,0.00015615,2]
[389626717,1759755033007,-500.0,0.00015615,2]
[389626718,1759755033017,-484.47516921,0.00015615,2]
[389626719,1759755033027,-632.26813851,0.00015615,2]
[389626720,1759755033036,-322.6107,0.00015615,2]
[389626721,1759755033047,-578.20924308,0.00015615,2]
[389626722,1759755033057,-151.71374604,0.00015615,2]
[389626723,1759755033074,-1431.43608235,0.00015616,2]
[389626724,1759755033089,-1680.0,0.00015616,2]
[389626725,1759755033098,-2366.74057024,0.0001567,2]
[389626726,1759755033108,-300.0,0.000157,5]
[389626727,1759755033118,-500.0,0.00015712,2]
[389626728,1759755033127,-378.0,0.00015726,2]
[389626729,1759755033136,-482.0,0.00015778,2]
[389626730,1759755033146,-300.0,0.000158,5]
[389626731,1759755033155,-482.0,0.00015807,2]
[389626732,1759755033164,-887.44,0.00015854,2]
[389626733,1759755033174,-300.0,0.000159,5]
[389626734,1759755033183,-378.0,0.00015903,2]
[389626735,1759755033192,-378.0,0.00015904,2]
[389626736,1759755033201,-807.65,0.00015961,2]
[389626737,1759755033211,-1615.06,0.00015961,2]
[389626738,1759755033220,-948.0,0.00015961,2]
[389626739,1759755033230,-5756.5487192,0.00016,3]
[389626740,1759755033241,-347.672934,0.00016,2]
[389626741,1759755033251,-1970.91969998,0.00016054,2]
[389626742,1759755033260,-150.0,0.0001608,2]
[389626743,1759755033269,-1970.91969993,0.00016086,2]
[389626744,1759755033279,-6510.28,0.00016116,2]
[389626745,1759755033289,-9193.01,0.00016116,2]
[389626746,1759755033299,-7759.06,0.00016116,2]
[389626747,1759755033308,-1970.91969993,0.00016117,2]
[389626748,1759755033318,-887.4579587,0.00016128,2]
[389626749,1759755033327,-1970.91969993,0.00016149,2]
[389626750,1759755033341,-1855.66316,0.00016154,2]
[389626751,1759755033351,-215.98033907,0.00016167,2]
[389626752,1759755033362,-1970.91969993,0.0001618,2]
[389626753,1759755033372,-1000.0,0.00016181,2]
[389626754,1759755033382,-2500.0,0.00016198,3]
[389626755,1759755033392,-3273.96171624,0.00016202,2]
[389626756,1759755033401,-568.36,0.00016205,2]
[389626757,1759755033410,-2500.0,0.00016206,3]
[389626758,1759755033420,-370.68887098,0.00016206,3]
[389626759,1759755033429,-1970.91969993,0.00016212,2]
[389626760,1759755033439,-2500.0,0.00016215,3]
[389626761,1759755033448,-1000.0,0.00016216,2]
[389626762,1759755033457,-3273.96171616,0.00016217,2]
[389626763,1759755033467,-482.0,0.00016223,2]
[389626764,1759755033477,-2500.0,0.00016224,3]
[389626765,1759755033487,-3273.96171616,0.00016232,2]
[389626766,1759755033496,-2500.0,0.00016233,3]
[389626767,1759755033505,-166.46669735,0.00016238,2]
[389626768,1759755033515,-2500.0,0.00016242,3]
[389626769,1759755033524,-1970.91969993,0.00016243,2]
[389626770,1759755033534,-2500.0,0.0001625,3]
[389626771,1759755033543,-2500.0,0.00016259,3]
[389626772,1759755033553,-2500.0,0.00016268,3]
[389626773,1759755033563,-2190.6192,0.0001627,2]
[389626774,1759755033573,-17862.79716281,0.00016271,2]
[389626775,1759755033582,-2345.86425628,0.00016273,2]
[389626776,1759755033591,-1970.91969993,0.00016275,2]
[389626777,1759755033601,-2500.0,0.00016277,3]
[389626778,1759755033611,-760.41159808,0.00016279,2]
[389626779,1759755033621,-17862.79716281,0.00016279,2]
[389626780,1759755033631,-163.60813769,0.0001628,2]
[389626781,1759755033640,-1449.04791118,0.00016284,2]
[389626782,1759755033650,-35137.53138515,0.00016284,2]
[389626783,1759755033659,-35137.53138515,0.00016285,2]
[389626784,1759755033668,-2500.0,0.00016286,3]
[389626785,1759755033677,-2345.86425628,0.00016286,2]
[389626786,1759755033687,-163.60813765,0.00016287,2]
[389626787,1759755033696,-1516.60407416,0.00016288,2]
[389626788,1759755033705,-1516.60407416,0.0001629,2]
[389626789,1759755033715,-568.36,0.0001629,2]
[389626790,1759755033724,-568.36,0.0001629,2]
[389626791,1759755033734,-981.22443405,0.00016291,2]
[389626792,1759755033743,-5000.0,0.00016291,2]
[389626793,1759755033752,-1516.60407416,0.00016294,2]
[389626794,1759755033762,-1172.93212814,0.00016294,2]
[389626795,1759755033771,-2500.0,0.00016294,3]
[389626796,1759755033781,-163.60813765,0.00016295,2]
[389626797,1759755033790,-1150.0,0.000163,3]
[389626798,1759755033799,-1150.0,0.000163,6]
[389626799,1759755033811,-203845.84119269,0.000163,2]
[389626800,1759755033825,-77533.00780731,0.000163,2]
[389626801,1759755033835,-163.60813765,0.00016302,2]
[389626802,1759755033845,-760.41159808,0.00016303,2]
[389626803,1759755033855,-2500.0,0.00016303,3]
[389626804,1759755033864,-1516.60407415,0.00016304,2]
[389626805,1759755033874,-523.28026139,0.00016304,2]
[389626806,1759755033883,-1970.91969993,0.00016306,2]
[389626807,1759755033894,-200.0,0.00016307,2]
[389626808,1759755033905,-17862.79716281,0.00016308,2]
[389626809,1759755033915,-1516.60407416,0.00016309,2]
[389626810,1759755033925,-163.60813765,0.00016309,2]
[389626811,1759755033936,-482.0,0.0001631,2]
[389626812,1759755033946,-2500.0,0.00016312,3]
[389626813,1759755033956,-35137.53138515,0.00016313,2]
[389626814,1759755033966,-163.60813765,0.00016316,2]
[389626815,1759755033980,-760.41159808,0.00016318,2]
[389626816,1759755033989,-523.28026139,0.00016318,2]
[389626817,1759755033999,-923.39145338,0.00016318,2]
[389626818,1759755034011,-597.43174277,0.00016318,2]
[389626819,1759755034021,-25.50625724,0.0001632,2]
[389626820,1759755034032,-130.47585128,0.0001632,2]
[389626821,1759755034043,-169.52414872,0.0001632,2]
[389626822,1759755034111,-508.07129054,0.00014196,2]
[389626823,1759755034120,-224.65395111,0.00014196,2]
[389626824,1759755034130,-568.36,0.0001629,2]
[389626825,1759755034139,-1347.07992543,0.0001632,2]
[389626826,1759755034148,-2500.0,0.00016321,3]
[389626827,1759755034157,-35137.53138515,0.00016322,2]
[389626828,1759755034167,-482.0,0.00016322,2]
[389626829,1759755034183,-17862.79716281,0.00016322,2]
[389626830,1759755034192,-523.28026139,0.00016323,2]
[389626831,1759755034202,-163.60813765,0.00016324,2]
[389626832,1759755034211,-1172.93212814,0.00016324,2]
[389626833,1759755034221,-35137.53138515,0.00016327,2]
[389626834,1759755034231,-1516.60407416,0.00016329,2]
[389626835,1759755034241,-1561.221,0.00016329,2]
[389626836,1759755034250,-1000.0,0.00016329,2]
[389626837,1759755034260,-2500.0,0.0001633,3]
[389626838,1759755034270,-1516.60407416,0.0001633,2]
[389626839,1759755034287,-163.60813765,0.00016331,2]
[389626840,1759755034296,-981.22443405,0.00016334,2]
[389626841,1759755034305,-1852.79606672,0.00016337,2]
[389626842,1759755034315,-647.44032553,0.00016337,2]
[389626843,1759755034324,-647.44032551,0.00016338,2]
[389626844,1759755034334,-2502.5951,0.00016338,2]
[389626845,1759755034343,-621.02087587,0.00016338,2]
[389626846,1759755034355,-1819.94302413,0.00016338,2]
[389626847,1759755034364,-1177.59498383,0.00016338,2]
[389626848,1759755034373,-259.00117883,0.00016338,2]
[389626849,1759755034383,-163.60813765,0.00016338,2]
[389626850,1759755034392,-1970.91969993,0.00016338,2]
[389626851,1759755034402,-647.44032551,0.00016338,2]
[389626852,1759755034411,-2500.0,0.00016338,3]
[389626853,1759755034421,-1516.60407415,0.00016339,2]
[389626854,1759755034431,-1172.93212814,0.0001634,2]
[389626855,1759755034440,-771.66702196,0.00016341,2]
[389626856,1759755034452,-744.93705219,0.00016341,2]
[389626857,1759755034462,-981.22443405,0.00016343,2]
[389626858,1759755034472,-482.0,0.00016344,2]
[389626859,1759755034481,-1172.93212814,0.00016345,2]
[389626860,1759755034491,-2500.0,0.00016347,3]
[389626861,1759755034501,-1516.60407415,0.00016354,2]
[389626862,1759755034511,-3174.921,0.00016354,2]
[389626863,1759755034522,-181.153,0.00016354,2]
[389626864,1759755034531,-523.28026139,0.00016355,2]
[389626865,1759755034541,-2345.86425628,0.00016355,2]
[389626866,1759755034550,-2500.0,0.00016356,3]
[389626867,1759755034560,-760.41159808,0.00016356,2]
[389626868,1759755034570,-523.28026139,0.00016357,2]
[389626869,1759755034579,-1516.60407416,0.00016359,2]
[389626870,1759755034588,-1516.60407416,0.00016362,2]
[389626871,1759755034598,-981.22443405,0.00016362,2]
[389626872,1759755034608,-116.14250433,0.00016365,3]
[389626873,1759755034620,-2383.85749567,0.00016365,3]
[389626874,1759755034631,-2345.86425628,0.00016368,2]
[389626875,1759755034640,-1516.60407416,0.00016368,2]
[389626876,1759755034651,-532.04033263,0.0001637,2]
[389626877,1759755034661,-700.0,0.0001637,2]
[389626878,1759755034670,-700.0,0.0001637,2]
[389626879,1759755034679,-700.0,0.0001637,2]
[389626880,1759755034688,-907.85281298,0.0001637,2]
[389626881,1759755034698,-2500.0,0.00016374,3]
[389626882,1759755034707,-1520.82319615,0.00016376,2]
[389626883,1759755034718,-981.22443405,0.00016379,2]
[389626884,1759755034729,-1000.0,0.00016379,2]
[389626885,1759755034738,-6869.53954294,0.0001638,2]
[389626900,1759755037460,-3273.96171616,0.00016247,2]
[389626901,1759755037470,-568.36,0.0001629,2]
[389626902,1759755037479,-751.77828388,0.0001638,2]
[389626903,1759755037566,-62289.02223711,0.0001638,2]
[389626915,1759755039504,-500.0,0.00014195,2]
[389626916,1759755039514,-500.0,0.00014195,2]
[389626917,1759755039524,-366.91572566,0.00014195,2]
[389626918,1759755039533,-514.37835107,0.00016262,2]
[389626919,1759755039545,-2759.58336509,0.00016262,2]
[389626920,1759755039555,-1172.93212814,0.00016271,2]
[389626921,1759755039565,-196.1243756,0.0001628,2]
[389626922,1759755039577,-976.80775254,0.0001628,2]
[389626923,1759755039586,-1516.60407416,0.00016298,2]
[389626924,1759755039596,-1516.60407416,0.00016314,2]
[389626925,1759755039605,-422.2524894,0.0001634,2]
[389626926,1759755039617,-750.67963874,0.0001634,2]
[389626927,1759755039627,-1516.60407416,0.00016374,2]
[389626928,1759755039636,-13367.47253696,0.0001638,2]
[389626929,1759755039647,-1490.11929013,0.0001638,2]
[389626930,1759755039670,-891.74405965,0.00016269,2]
[389626931,1759755039726,-624.86001451,0.00016269,2]
[389626932,1759755039735,-1215.6557873,0.0001638,2]
[389626936,1759755042663,-193.48979904,0.00016287,2]
[389626937,1759755042824,-979.4423291,0.00016287,2]
[389626938,1759755042834,-229586.77530233,0.0001638,2]
[389626939,1759755042844,-1516.60407416,0.00016382,2]
[389626940,1759755042854,-17862.79716281,0.00016382,2]
[389626941,1759755042863,-2500.0,0.00016382,3]
[389626942,1759755042873,-2500.0,0.00016391,3]
[389626943,1759755042882,-2345.86425628,0.00016392,2]
[389626944,1759755042891,-1172.93212814,0.00016392,2]
[389626945,1759755042900,-1172.93212814,0.00016392,2]
[389626946,1759755042910,-168.40353846,0.00016392,2]
[389626947,1759755042920,-350.46440155,0.00016392,2]
[389626948,1759755042929,-1520.82319615,0.00016396,2]
[389626949,1759755042939,-1520.82319615,0.00016397,2]
[389626951,1759755042948,-1520.82319615,0.00016399,2]
[389626953,1759755042957,-1516.60407416,0.00016399,2]
[389626954,1759755042966,-760.41159808,0.000164,2]
[389626956,1759755042983,-2500.0,0.000164,3]
[389626958,1759755042992,-250.0,0.000164,2]
[389626959,1759755043002,-250.0,0.000164,2]
[389626961,1759755043011,-250.0,0.000164,2]
[389626963,1759755043023,-250.0,0.000164,2]
[389626965,1759755043032,-250.0,0.000164,2]
[389626967,1759755043042,-250.0,0.000164,2]
[389626969,1759755043052,-250.0,0.000164,2]
[389626971,1759755043061,-250.0,0.000164,2]
[389626972,1759755043070,-250.0,0.000164,2]
[389626974,1759755043079,-250.0,0.000164,2]
[389626976,1759755043088,-250.0,0.000164,2]
[389626978,1759755043096,-250.0,0.000164,2]
[389626979,1759755043105,-250.0,0.000164,2]
[389626981,1759755043115,-250.0,0.000164,2]
[389626984,1759755043125,-250.0,0.000164,2]
[389626986,1759755043135,-250.0,0.000164,2]
[389626988,1759755043144,-250.0,0.000164,2]
[389626990,1759755043153,-250.0,0.000164,2]
[389626992,1759755043162,-250.0,0.000164,2]
[389626993,1759755043172,-250.0,0.000164,2]
[389626995,1759755043181,-250.0,0.000164,2]
[389626997,1759755043191,-250.0,0.000164,2]
[389626999,1759755043200,-250.0,0.000164,2]
[389627001,1759755043209,-250.0,0.000164,2]
[389627002,1759755043219,-250.0,0.000164,2]
[389627004,1759755043227,-250.0,0.000164,2]
[389627006,1759755043236,-250.0,0.000164,2]
[389627008,1759755043246,-250.0,0.000164,2]
[389627009,1759755043254,-250.0,0.000164,2]
[389627011,1759755043264,-250.0,0.000164,2]
[389627013,1759755043273,-250.0,0.000164,2]
[389627015,1759755043282,-363.8,0.000164,2]
[389627017,1759755043290,-385.0,0.000164,2]
[389627019,1759755043299,-1222.0,0.00016411,2]
[389627020,1759755043308,-190.21218168,0.00016422,2]
[389627022,1759755043318,-151.0,0.00016426,2]
[389627024,1759755043327,-267.50038419,0.00016428,2]
[389627026,1759755043336,-267.50038419,0.00016428,2]
[389627028,1759755043345,-267.50038419,0.00016428,2]
[389627029,1759755043354,-21298.73876386,0.00016429,2]
[389627106,1759755045595,-3273.96171616,0.00016278,2]
[389627107,1759755045604,-344.33828481,0.00016429,2]
[389627108,1759755045616,-3968.99998999,0.00016429,2]
[389627109,1759755045628,-8780.78269209,0.00016429,2]
[389627110,1759755045656,-5330.75764797,0.00016429,2]
[389627121,1759755474839,150.0,0.0001299,2]
[389627122,1759755490524,753.30575798,0.000157,60]
[389627127,1759755633880,800.0,8.135e-05,2]
[389627128,1759755635899,800.0,8.766e-05,2]
[389627129,1759755637144,800.0,9.396e-05,2]
[389627130,1759755639029,800.0,0.00010027,2]
[389627131,1759755640377,800.0,0.00010657,2]
[389627132,1759755642053,800.0,0.00011288,2]
[389627133,1759755643640,800.0,0.00011918,2]
[389627135,1759755645213,800.0,0.00012549,2]
[389627143,1759755822045,313.97361165,0.00012,2]
[389627149,1759756169145,-411.33158476,0.00013179,2]
[389627186,1759756231729,-296.30613985,0.000139,2]
[389627188,1759756231741,-512.25234728,0.000139,2]
[389627189,1759756231752,-259.69942639,0.000139,2]
[389627190,1759756231764,-646.21618259,0.000139,2]
[389627191,1759756231775,-2505.81409613,0.000139,2]
[389627192,1759756231787,-1305.9141491,0.000139,2]
[389627193,1759756231798,-435.42027378,0.00013945,2]
[389627194,1759756231809,-150.0,0.00013985,2]
[389627195,1759756231820,-1200.0,0.00013985,2]
[389627196,1759756231831,-211.96,0.00013986,2]
[389627197,1759756231842,-500.0,0.00013986,2]
[389627198,1759756231852,-500.0,0.00013986,2]
[389627199,1759756231861,-500.0,0.00013986,2]
[389627200,1759756231871,-500.0,0.00013986,2]
[389627201,1759756231880,-500.0,0.00013986,2]
[389627202,1759756231890,-500.0,0.00013986,2]
[389627203,1759756231899,-500.0,0.00013986,2]
[389627204,1759756231908,-500.0,0.00013986,2]
[389627205,1759756231918,-500.0,0.00013986,2]
[389627206,1759756231927,-500.0,0.00013986,2]
[389627207,1759756231936,-500.0,0.00013986,2]
[389627208,1759756231946,-506.96550665,0.00013986,2]
[389627209,1759756231956,-500.0,0.00013986,2]
[389627210,1759756231966,-500.0,0.00013986,2]
[389627211,1759756231975,-500.0,0.00013986,2]
[389627212,1759756231984,-500.0,0.00013986,2]
[389627213,1759756231993,-500.0,0.00013986,2]
[389627214,1759756232003,-500.0,0.00013986,2]
[389627215,1759756232013,-500.0,0.00013986,2]
[389627216,1759756232022,-500.0,0.00013986,2]
[389627217,1759756232032,-500.0,0.00013986,2]
[389627218,1759756232041,-500.0,0.00013986,2]
[389627219,1759756232051,-500.0,0.00013986,2]
[389627220,1759756232060,-500.0,0.00013986,2]
[389627221,1759756232070,-500.0,0.00013986,2]
[389627222,1759756232080,-500.0,0.00013986,2]
[389627223,1759756232089,-500.0,0.00013986,2]
[389627224,1759756232100,-500.0,0.00013986,2]
[389627225,1759756232109,-500.0,0.00013986,2]
[389627226,1759756232118,-500.0,0.00013986,2]
[389627227,1759756232127,-500.0,0.00013986,2]
[389627228,1759756232136,-500.0,0.00013986,2]
[389627229,1759756232145,-300.0,0.00013986,2]
[389627230,1759756232154,-1200.0,0.00014183,2]
[389627231,1759756232163,-1731.328,0.00014199,2]
[389627232,1759756232172,-211.96,0.0001426,2]
[389627233,1759756232182,-500.0,0.00014497,2]
[389627234,1759756232191,-150.0,0.00014497,2]
[389627235,1759756232200,-500.0,0.00014497,2]
[389627236,1759756232209,-504.0,0.00014497,2]
[389627238,1759756232218,-150.0,0.00014497,2]
[389627239,1759756232227,-500.0,0.00014497,2]
[389627240,1759756232236,-150.0,0.00014497,2]
[389627241,1759756232245,-1021.0,0.00014497,2]
[389627242,1759756232254,-150.0,0.00014497,2]
[389627244,1759756232263,-500.0,0.00014497,2]
[389627246,1759756232272,-150.0,0.00014497,2]